fUST/lending_fUST_20250227
["ID","MTS","AMOUNT","RATE_DAILY","PERIOD"]
[354674370,1740612555331,-500.0,0.00030397,30]
[354674371,1740612555350,-500.0,0.00030397,30]
[354674372,1740612555370,-500.0,0.00030397,30]
[354674373,1740612555393,-500.0,0.00030397,30]
[354674374,1740612555414,-500.0,0.00030397,30]
[354674375,1740612555435,-500.0,0.00030397,30]
[354674376,1740612555457,-500.0,0.00030397,30]
[354674377,1740612555478,-500.0,0.00030397,30]
[354674378,1740612555499,-500.0,0.00030397,30]
[354674379,1740612555521,-500.0,0.00030397,30]
[354674380,1740612555543,-500.0,0.00030397,30]
[354674381,1740612555564,-500.0,0.00030397,30]
[354674382,1740612555586,-499.3,0.00030397,30]
[354674383,1740612555608,-500.0,0.00030397,30]
[354674384,1740612555629,-197.06358327,0.00031945,120]
[354674385,1740612555652,-165.79,0.00032,7]
[354674386,1740612555676,-433.57360314,0.00032141,6]
[354674387,1740612555698,-1047.79202983,0.000329,2]
[354674388,1740612555722,-874.21,0.00033,30]
[354674389,1740612555749,-1000.0,0.00033413,5]
[354674390,1740612555769,-312.21423528,0.00033413,5]
[354674391,1740612555790,-1000.0,0.00033413,5]
[354674392,1740612555812,-433.57360314,0.00034555,7]
[354674393,1740612555833,-841.68550404,0.00035,2]
[354674394,1740612555853,-16768.96475318,0.00035,120]
[354674395,1740612555874,-672.10761121,0.000362,98]
[354674396,1740612555896,-672.10761118,0.000362,98]
[354674397,1740612555918,-275.4529829,0.00036354,2]
[354674398,1740612555940,-433.57360314,0.00036969,7]
[354674399,1740612555962,-672.10761118,0.000374,105]
[354674400,1740612555983,-433.57360314,0.00039383,8]
[354674401,1740612556005,-1755.2442413,0.0004,43]
[354674402,1740612556026,-874.21,0.0004,30]
[354674403,1740612556047,-379.213969,0.00040295,2]
[354674404,1740612556069,-433.57360314,0.00041797,9]
[354674405,1740612556090,-4424.4783368,0.00042693,2]
[354674406,1740612556111,-1500.0,0.00043432,10]
[354674407,1740612556132,-1500.0,0.00043432,10]
[354674408,1740612556154,-423.45639024,0.0004421,10]
[354674409,1740612557183,-10.1172129,0.0004421,10]
[354674410,1740612557205,-672.10761118,0.0004465,120]
[354674411,1740612557226,-8813.28026733,0.00045,60]
[354674412,1740612557248,-151.0,0.00045,120]
[354674413,1740612557270,-157.47783642,0.00046573,2]
[354674414,1740612557294,-500.0,0.00046573,120]
[354674415,1740612557316,-500.0,0.00046573,120]
[354674416,1740612557339,-309.32331293,0.00046573,120]
[354674417,1740612557360,-500.0,0.00046573,120]
[354674418,1740612557383,-500.0,0.00046573,120]
[354674419,1740612557404,-299.52333992,0.00046573,120]
[354674420,1740612557425,-28744.22,0.00046574,120]
[354674421,1740612557446,-500.0,0.00046575,120]
[354674422,1740612557466,-2930.57,0.00046575,120]
[354674423,1740612557486,-500.0,0.00046575,21]
[354674424,1740612557506,-658.82,0.00046575,120]
[354674425,1740612557528,-8510.33,0.00046575,120]
[354674426,1740612557550,-500.0,0.00046575,120]
[354674427,1740612557571,-500.0,0.00046575,120]
[354674428,1740612557593,-500.0,0.00046575,120]
[354674429,1740612557617,-500.0,0.00046575,120]
[354674430,1740612557640,-500.0,0.00046575,120]
[354674431,1740612557664,-1597.2,0.00046575,120]
[354674432,1740612557685,-500.0,0.00046575,120]
[354674433,1740612557707,-18750.12,0.00046575,120]
[354674434,1740612557729,-500.0,0.00046575,120]
[354674435,1740612557751,-7716.64,0.00046575,120]
[354674436,1740612557772,-500.0,0.00046575,120]
[354674437,1740612557793,-8145.14,0.00046575,120]
[354674438,1740612557814,-11356.27,0.00046575,120]
[354674439,1740612557835,-2928.74,0.00046575,120]
[354674440,1740612557856,-982.75,0.00046575,120]
[354674441,1740612557877,-513.83,0.00046575,120]
[354674442,1740612557897,-802.07,0.00046575,120]
[354674443,1740612557918,-500.0,0.00046575,120]
[354674444,1740612557940,-500.0,0.00046575,120]
[354674445,1740612557962,-500.0,0.00046575,120]
[354674446,1740612557983,-3574.17,0.00046575,120]
[354674447,1740612558003,-1405.43,0.00046575,120]
[354674448,1740612558024,-511.36,0.00046575,30]
[354674449,1740612558232,-7025.95,0.00046575,120]
[354674450,1740612558256,-1769.31,0.00046575,120]
[354674451,1740612558278,-11606.25,0.00046575,3]
[354674452,1740612558301,-631.58222512,0.00046575,120]
[354674453,1740612558323,-6098.04,0.00046575,120]
[354674454,1740612558344,-5165.94,0.00046575,120]
[354674455,1740612558366,-1296.39,0.00046575,120]
[354674456,1740612558387,-500.0,0.00046575,120]
[354674457,1740612558408,-1000.0,0.00046575,2]
[354674458,1740612558431,-500.0,0.00046575,120]
[354674459,1740612558453,-1434.05,0.00046575,120]
[354674460,1740612558474,-602.5,0.00046575,120]
[354674461,1740612558494,-500.0,0.00046575,120]
[354674462,1740612558516,-500.0,0.00046575,120]
[354674463,1740612558538,-11788.68,0.00046575,120]
[354674464,1740612558559,-500.0,0.00046575,120]
[354674465,1740612558580,-506.58764162,0.00046575,120]
[354674466,1740612558602,-3610.93,0.00046575,120]
[354674467,1740612558626,-1851.75,0.00046575,120]
[354674468,1740612558651,-1851.75,0.00046575,120]
[354674469,1740612558680,-1851.75,0.00046575,120]
[354674470,1740612558705,-1851.75,0.00046575,120]
[354674471,1740612558729,-1851.75,0.00046575,120]
[354674472,1740612558752,-1267.92,0.00046575,120]
[354674473,1740612558774,-500.0,0.00046575,120]
[354674474,1740612558803,-433.57360314,0.00046624,10]
[354674475,1740612558826,-500.0,0.00046849,120]
[354674476,1740612558848,-2930.57,0.00046849,120]
[354674477,1740612558871,-500.0,0.00046849,21]
[354674478,1740612558893,-658.82,0.00046849,120]
[354674479,1740612558916,-8510.33,0.00046849,120]
[354674480,1740612558937,-1597.2,0.00046849,120]
[354674481,1740612558960,-500.0,0.00046849,120]
[354674482,1740612558983,-18750.12,0.00046849,120]
[354674483,1740612559004,-500.0,0.00046849,120]
[354674484,1740612559026,-7716.64,0.00046849,120]
[354674485,1740612559047,-500.0,0.00046849,120]
[354674486,1740612559070,-8145.14,0.00046849,120]
[354674487,1740612559092,-11356.27,0.00046849,120]
[354674488,1740612559113,-2928.74,0.00046849,120]
[354674489,1740612559135,-982.75,0.00046849,120]
[354674490,1740612559157,-513.83,0.00046849,120]
[354674491,1740612559178,-802.07,0.00046849,120]
[354674492,1740612559201,-500.0,0.00046849,120]
[354674493,1740612559222,-500.0,0.00046849,120]
[354674494,1740612559243,-500.0,0.00046849,120]
[354674495,1740612559265,-3574.17,0.00046849,120]
[354674496,1740612559286,-1405.43,0.00046849,120]
[354674497,1740612559308,-511.36,0.00046849,30]
[354674498,1740612559330,-7025.95,0.00046849,120]
[354674499,1740612559352,-1769.31,0.00046849,120]
[354674500,1740612559374,-11606.25,0.00046849,3]
[354674501,1740612559396,-6098.04,0.00046849,120]
[354674502,1740612559418,-5165.94,0.00046849,120]
[354674503,1740612559440,-1296.39,0.00046849,120]
[354674504,1740612559461,-500.0,0.00046849,120]
[354674505,1740612559482,-1000.0,0.00046849,2]
[354674506,1740612559506,-500.0,0.00046849,120]
[354674507,1740612559526,-1434.05,0.00046849,120]
[354674508,1740612559547,-602.5,0.00046849,120]
[354674509,1740612559569,-500.0,0.00046849,120]
[354674510,1740612559590,-500.0,0.00046849,120]
[354674511,1740612559613,-11788.68,0.00046849,120]
[354674512,1740612559635,-3610.93,0.00046849,120]
[354674513,1740612559659,-1267.92,0.00046849,120]
[354674514,1740612559681,-500.0,0.00046849,120]
[354674515,1740612559703,-874.21,0.000469,30]
[354674516,1740612559725,-500.0,0.00047122,120]
[354674517,1740612559751,-1851.75,0.00047122,120]
[354674518,1740612559773,-500.0,0.00047123,120]
[354674519,1740612559793,-2930.57,0.00047123,120]
[354674520,1740612559814,-309.87428801,0.00047123,21]
[354674521,1740612559982,-190.12571199,0.00047123,21]
[354674522,1740612560003,-658.82,0.00047123,120]
[354674523,1740612560024,-29.12835901,0.00047123,120]
[354674524,1740612563151,-500.0,0.00046575,120]
[354674525,1740612563173,-500.0,0.00046575,120]
[354674526,1740612563195,-2222.15,0.00046575,120]
[354674527,1740612563216,-500.0,0.00046849,120]
[354674528,1740612563237,-2222.15,0.00046849,120]
[354674529,1740612563604,600.75,0.00046575,120]
[354674530,1740612563886,600.75,0.00046849,120]
[354674531,1740612564409,500.0,0.00046575,120]
[354674532,1740612565116,500.0,0.00046849,120]
[354674533,1740612565174,500.0,0.00046575,120]
[354674534,1740612565250,500.0,0.00046849,120]
[354674535,1740612566068,-3701.96817584,0.00047123,120]
[354674536,1740612567085,-2396.87410388,0.00047123,120]
[354674537,1740612567126,-2382.35936127,0.00047123,120]
[354674538,1740612567151,-1597.2,0.00047123,120]
[354674539,1740612567176,-500.0,0.00047123,120]
[354674540,1740612567203,-18750.12,0.00047123,120]
[354674541,1740612567228,-500.0,0.00047123,120]
[354674542,1740612567254,-7716.64,0.00047123,120]
[354674543,1740612567280,-8145.14,0.00047123,120]
[354674544,1740612567305,-11356.27,0.00047123,120]
[354674545,1740612567329,-2928.74,0.00047123,120]
[354674546,1740612567353,-982.75,0.00047123,120]
[354674547,1740612567377,-513.83,0.00047123,120]
[354674548,1740612567401,-802.07,0.00047123,120]
[354674549,1740612567426,-500.0,0.00047123,120]
[354674550,1740612567450,-500.0,0.00047123,120]
[354674551,1740612567474,-3574.17,0.00047123,120]
[354674552,1740612567498,-1405.43,0.00047123,120]
[354674553,1740612567521,-511.36,0.00047123,30]
[354674554,1740612567546,-7025.95,0.00047123,120]
[354674555,1740612567571,-1769.31,0.00047123,120]
[354674556,1740612567597,-11606.25,0.00047123,3]
[354674557,1740612567622,-6098.04,0.00047123,120]
[354674558,1740612567646,-5165.94,0.00047123,120]
[354674559,1740612567672,-1296.39,0.00047123,120]
[354674560,1740612567696,-500.0,0.00047123,120]
[354674561,1740612567720,-1000.0,0.00047123,2]
[354674562,1740612567747,-500.0,0.00047123,120]
[354674563,1740612567771,-1434.05,0.00047123,120]
[354674564,1740612567795,-602.5,0.00047123,120]
[354674565,1740612567821,-500.0,0.00047123,120]
[354674566,1740612567845,-500.0,0.00047123,120]
[354674567,1740612567870,-11788.68,0.00047123,120]
[354674568,1740612567894,-3610.93,0.00047123,120]
[354674569,1740612567918,-1267.92,0.00047123,120]
[354674570,1740612567942,-500.0,0.00047123,120]
[354674571,1740612567967,-500.0,0.00047123,120]
[354674572,1740612567991,-2222.15,0.00047123,120]
[354674573,1740612568016,-600.75,0.00047123,120]
[354674574,1740612568039,-500.0,0.00047337,10]
[354674575,1740612568062,-500.0,0.0004736,10]
[354674576,1740612568085,-500.0,0.00047387,10]
[354674577,1740612568116,-500.0,0.00047387,10]
[354674578,1740612568140,-500.0,0.00047387,10]
[354674579,1740612568163,-500.0,0.00047387,10]
[354674580,1740612568187,-500.0,0.00047387,10]
[354674581,1740612568211,-500.0,0.00047387,10]
[354674582,1740612568237,-500.0,0.00047396,120]
[354674583,1740612568262,-388.79710636,0.00047396,120]
[354674584,1740612568287,-84.83228482,0.00047396,120]
[354674585,1740612569376,389.70708728,0.00046575,120]
[354674586,1740612574154,-110.29291272,0.00046575,120]
[354674587,1740612574179,-500.0,0.00046575,120]
[354674588,1740612574204,-500.0,0.00046849,120]
[354674589,1740612574228,-500.0,0.00046849,120]
[354674590,1740612574253,-500.0,0.00047123,120]
[354674591,1740612574277,-500.0,0.00047123,120]
[354674595,1740612575896,500.0,0.00046575,120]
[354674599,1740612576344,500.0,0.00046575,120]
[354674600,1740612576454,500.0,0.00046575,120]
[354674601,1740612576747,500.0,0.00046575,120]
[354674602,1740612576997,500.0,0.00046575,120]
[354674603,1740612577302,500.0,0.00046575,120]
[354674604,1740612577545,500.0,0.00046575,120]
[354674605,1740612577805,259.70708728,0.00046575,120]
[354674642,1740612632279,-500.0,0.0002616,2]
[354674643,1740612632288,-500.0,0.0002616,2]
[354674644,1740612632297,-500.0,0.0002616,2]
[354674645,1740612632306,-500.0,0.0002616,2]
[354674646,1740612632315,-500.0,0.0002616,2]
[354674647,1740612632324,-500.0,0.0002616,2]
[354674648,1740612632333,-500.0,0.0002616,2]
[354674649,1740612632342,-160.0,0.0003,10]
[354674650,1740612632351,-1000.0,0.00031639,5]
[354674651,1740612632360,-1000.0,0.00031639,5]
[354674652,1740612632370,-1000.00667063,0.00031639,5]
[354674653,1740612632379,-1000.0,0.00031639,5]
[354674654,1740612632388,-1000.0,0.00031639,5]
[354674655,1740612632397,-453.25752523,0.00031639,5]
[354674656,1740612632406,-1000.0,0.00031639,5]
[354674657,1740612632415,-160.538884,0.00038058,2]
[354674658,1740612632424,-165.79,0.000394,7]
[354674659,1740612632433,-500.0,0.00041658,10]
[354674660,1740612632442,-1500.0,0.00041658,7]
[354674661,1740612632451,-1500.0,0.00041658,10]
[354674662,1740612632460,-1500.0,0.00041658,10]
[354674663,1740612632469,-1025.58893049,0.00041658,10]
[354674664,1740612632479,-240.29291272,0.00046575,120]
[354674665,1740612632488,-500.0,0.00046575,120]
[354674666,1740612632497,-500.0,0.00046575,21]
[354674667,1740612632506,-500.0,0.00046575,120]
[354674668,1740612632516,-500.0,0.00046575,120]
[354674669,1740612632525,-500.0,0.00046575,120]
[354674670,1740612632534,-963.51,0.00046575,120]
[354674671,1740612632543,-1872.17,0.00046575,120]
[354674672,1740612632553,-2342.23192771,0.00046575,120]
[354674673,1740612632564,-5332.97807229,0.00046575,120]
[354674674,1740612632575,-3447.65,0.00046575,120]
[354674675,1740612632584,-500.0,0.00046575,120]
[354674676,1740612632593,-500.0,0.00046575,120]
[354674677,1740612632602,-1518.89,0.00046575,120]
[354674678,1740612632611,-500.0,0.00046575,120]
[354674679,1740612632621,-828.63,0.00046575,120]
[354674680,1740612632630,-500.0,0.00046575,120]
[354674681,1740612632640,-647.76837748,0.00046575,120]
[354674682,1740612632649,-500.0,0.00046575,120]
[354674683,1740612632659,-500.0,0.00046575,2]
[354674684,1740612632668,-874.37,0.00046575,120]
[354674685,1740612632679,-500.0,0.00046575,120]
[354674686,1740612632691,-4709.2752556,0.00046575,120]
[354674687,1740612632718,-1921.7476519,0.00046575,120]
[354674688,1740612632730,-458.31073865,0.00046575,120]
[354674689,1740612632761,-1043.9178688,0.00046575,120]
[354674690,1740612632774,-463.46,0.00046575,120]
[354674691,1740612632786,-7849.55848505,0.00046575,120]
[354674692,1740612632795,-987.91,0.00046575,120]
[354674693,1740612632804,-544.41,0.00046575,120]
[354674694,1740612632814,-500.0,0.00046575,120]
[354674695,1740612632823,-500.0,0.00046575,120]
[354674696,1740612632832,-500.0,0.00046575,120]
[354674697,1740612632842,-500.0,0.00046575,120]
[354674698,1740612632852,-500.0,0.00046848,120]
[354674699,1740612632861,-500.0,0.00046848,120]
[354674700,1740612632870,-500.0,0.00046848,120]
[354674701,1740612632883,-500.0,0.00046848,120]
[354674702,1740612632892,-500.0,0.00046848,120]
[354674703,1740612632902,-500.0,0.00046849,21]
[354674704,1740612632911,-963.51,0.00046849,120]
[354674705,1740612632920,-1872.17,0.00046849,120]
[354674706,1740612632929,-7675.21,0.00046849,120]
[354674707,1740612632939,-3447.65,0.00046849,120]
[354674708,1740612632948,-500.0,0.00046849,120]
[354674709,1740612632957,-500.0,0.00046849,120]
[354674710,1740612632967,-1518.89,0.00046849,120]
[354674711,1740612632976,-500.0,0.00046849,120]
[354674712,1740612632985,-828.63,0.00046849,120]
[354674713,1740612632995,-500.0,0.00046849,120]
[354674714,1740612633004,-500.0,0.00046849,120]
[354674715,1740612633013,-500.0,0.00046849,2]
[354674716,1740612633023,-874.37,0.00046849,120]
[354674717,1740612633032,-500.0,0.00046849,120]
[354674718,1740612633042,-16446.27,0.00046849,120]
[354674719,1740612633052,-987.91,0.00046849,120]
[354674720,1740612633061,-544.41,0.00046849,120]
[354674721,1740612633071,-500.0,0.00046849,120]
[354674722,1740612633082,-500.0,0.00046849,120]
[354674723,1740612633091,-564.40526321,0.00046849,120]
[354674724,1740612633101,-500.0,0.00046849,120]
[354674725,1740612633111,-363.43859847,0.00047122,120]
[354674726,1740612633121,-500.0,0.00047123,21]
[354674727,1740612633131,-963.51,0.00047123,120]
[354674728,1740612633141,-1872.17,0.00047123,120]
[354674729,1740612633151,-7675.21,0.00047123,120]
[354674730,1740612633160,-3447.65,0.00047123,120]
[354674731,1740612633170,-500.0,0.00047123,120]
[354674732,1740612633180,-500.0,0.00047123,120]
[354674733,1740612633190,-1518.89,0.00047123,120]
[354674734,1740612633199,-828.63,0.00047123,120]
[354674735,1740612633209,-151.608241,0.00047123,120]
[354674736,1740612633218,-500.0,0.00047123,120]
[354674737,1740612633227,-500.0,0.00047123,2]
[354674738,1740612633237,-874.37,0.00047123,120]
[354674739,1740612633246,-16446.27,0.00047123,120]
[354674740,1740612633255,-987.91,0.00047123,120]
[354674741,1740612633265,-544.41,0.00047123,120]
[354674742,1740612633274,-500.0,0.00047123,120]
[354674743,1740612633284,-238.8184893,0.00047297,28]
[354674744,1740612633293,-168.02,0.00047387,2]
[354674745,1740612633303,-168.02,0.00047387,2]
[354674746,1740612633312,-168.02,0.00047387,2]
[354674747,1740612633322,-168.02,0.00047387,2]
[354674748,1740612633485,-168.02,0.00047387,2]
[354674749,1740612633495,-168.02,0.00047387,2]
[354674750,1740612633505,-168.02,0.00047387,2]
[354674751,1740612633515,-7716.64,0.00047397,120]
[354674752,1740612633525,-11356.27,0.00047397,120]
[354674753,1740612633535,-8145.14,0.00047397,120]
[354674754,1740612633545,-2928.74,0.00047397,120]
[354674755,1740612633555,-982.75,0.00047397,120]
[354674756,1740612633564,-513.83,0.00047397,120]
[354674757,1740612633574,-802.07,0.00047397,120]
[354674758,1740612633584,-500.0,0.00047397,120]
[354674759,1740612633593,-500.0,0.00047397,120]
[354674760,1740612633603,-3574.17,0.00047397,120]
[354674761,1740612633612,-1405.43,0.00047397,120]
[354674762,1740612633624,-511.36,0.00047397,30]
[354674763,1740612633635,-7025.95,0.00047397,120]
[354674764,1740612633646,-1769.31,0.00047397,120]
[354674765,1740612633657,-11606.25,0.00047397,3]
[354674766,1740612633668,-6098.04,0.00047397,120]
[354674767,1740612633679,-5165.94,0.00047397,120]
[354674768,1740612633694,-1296.39,0.00047397,120]
[354674769,1740612633704,-1000.0,0.00047397,2]
[354674770,1740612633715,-500.0,0.00047397,120]
[354674771,1740612633727,-1434.05,0.00047397,120]
[354674772,1740612633737,-602.5,0.00047397,120]
[354674773,1740612633747,-500.0,0.00047397,120]
[354674774,1740612633756,-500.0,0.00047397,120]
[354674775,1740612633766,-11788.68,0.00047397,120]
[354674776,1740612633776,-3610.93,0.00047397,120]
[354674777,1740612633786,-1267.92,0.00047397,120]
[354674778,1740612633796,-500.0,0.00047397,120]
[354674779,1740612633806,-500.0,0.00047397,120]
[354674780,1740612633816,-2222.15,0.00047397,120]
[354674781,1740612633830,-600.75,0.00047397,120]
[354674782,1740612633851,-500.0,0.00047397,120]
[354674783,1740612633870,-500.0,0.00047397,120]
[354674784,1740612633881,-500.0,0.00047397,21]
[354674785,1740612633893,-963.51,0.00047397,120]
[354674786,1740612633903,-1872.17,0.00047397,120]
[354674787,1740612633913,-7675.21,0.00047397,120]
[354674788,1740612633925,-3447.65,0.00047397,120]
[354674789,1740612633935,-160.0,0.00047397,3]
[354674790,1740612633947,-500.0,0.00047397,120]
[354674791,1740612633959,-500.0,0.00047397,120]
[354674792,1740612633970,-1518.89,0.00047397,120]
[354674793,1740612633984,-160.0,0.00047397,2]
[354674794,1740612633996,-19607.61712864,0.00047397,3]
[354674795,1740612634007,-828.63,0.00047397,120]
[354674796,1740612634018,-500.0,0.00047397,120]
[354674797,1740612634030,-874.37,0.00047397,120]
[354674798,1740612634040,-16446.27,0.00047397,120]
[354674799,1740612634050,-987.91,0.00047397,120]
[354674800,1740612634060,-544.41,0.00047397,120]
[354674801,1740612634070,-500.0,0.00047397,120]
[354674802,1740612634079,-500.0,0.00047558,10]
[354674803,1740612634089,-500.0,0.00047558,10]
[354674804,1740612634098,-500.0,0.00047558,10]
[354674805,1740612634108,-500.0,0.00047558,10]
[354674806,1740612634118,-500.0,0.00047558,10]
[354674807,1740612634128,-500.0,0.00047558,10]
[354674808,1740612634138,-431.08838036,0.00047571,2]
[354674809,1740612634148,-197.7162239,0.00047663,2]
[354674810,1740612634157,-7716.64,0.00047671,120]
[354674811,1740612634167,-11356.27,0.00047671,120]
[354674812,1740612634177,-8145.14,0.00047671,120]
[354674813,1740612634187,-2928.74,0.00047671,120]
[354674814,1740612634196,-982.75,0.00047671,120]
[354674815,1740612634206,-513.83,0.00047671,120]
[354674816,1740612634216,-802.07,0.00047671,120]
[354674817,1740612634226,-500.0,0.00047671,120]
[354674818,1740612634236,-3574.17,0.00047671,120]
[354674819,1740612634245,-1405.43,0.00047671,120]
[354674820,1740612634255,-511.36,0.00047671,30]
[354674821,1740612634265,-7025.95,0.00047671,120]
[354674822,1740612634275,-1769.31,0.00047671,120]
[354674823,1740612634286,-11606.25,0.00047671,3]
[354674824,1740612634295,-6098.04,0.00047671,120]
[354674825,1740612634305,-5165.94,0.00047671,120]
[354674826,1740612634315,-1296.39,0.00047671,120]
[354674827,1740612634324,-1000.0,0.00047671,2]
[354674828,1740612634334,-500.0,0.00047671,120]
[354674829,1740612634344,-1434.05,0.00047671,120]
[354674830,1740612634354,-602.5,0.00047671,120]
[354674831,1740612634363,-500.0,0.00047671,120]
[354674832,1740612634374,-500.0,0.00047671,120]
[354674833,1740612634384,-11788.68,0.00047671,120]
[354674834,1740612634395,-3610.93,0.00047671,120]
[354674835,1740612634406,-1267.92,0.00047671,120]
[354674836,1740612634416,-186.92265444,0.00047671,120]
[354674837,1740612634427,-500.0,0.00047671,120]
[354674838,1740612634437,-2222.15,0.00047671,120]
[354674839,1740612634446,-600.75,0.00047671,120]
[354674840,1740612634455,-500.0,0.00047671,120]
[354674841,1740612634465,-500.0,0.00047671,120]
[354674842,1740612634474,-500.0,0.00047671,21]
[354674843,1740612634483,-963.51,0.00047671,120]
[354674844,1740612634493,-1872.17,0.00047671,120]
[354674845,1740612634503,-7675.21,0.00047671,120]
[354674846,1740612634512,-3447.65,0.00047671,120]
[354674847,1740612634521,-500.0,0.00047671,120]
[354674848,1740612634530,-500.0,0.00047671,120]
[354674849,1740612634540,-1518.89,0.00047671,120]
[354674850,1740612634550,-828.63,0.00047671,120]
[354674851,1740612634560,-216.75103451,0.00047671,120]
[354674852,1740612634570,-874.37,0.00047671,120]
[354674853,1740612634580,-16446.27,0.00047671,120]
[354674854,1740612634590,-987.91,0.00047671,120]
[354674855,1740612634600,-544.41,0.00047671,120]
[354674856,1740612634610,-500.0,0.00047671,120]
[354674857,1740612634620,-431.08838033,0.00047852,2]
[354674858,1740612634629,-289.04906876,0.000479,11]
[354674859,1740612634641,-7716.64,0.00047945,120]
[354674860,1740612634651,-11356.27,0.00047945,120]
[354674861,1740612634661,-8145.14,0.00047945,120]
[354674862,1740612634670,-2928.74,0.00047945,120]
[354674863,1740612634683,-982.75,0.00047945,120]
[354674864,1740612634693,-513.83,0.00047945,120]
[354674865,1740612634702,-802.07,0.00047945,120]
[354674866,1740612634711,-500.0,0.00047945,120]
[354674867,1740612634720,-3574.17,0.00047945,120]
[354674868,1740612634731,-1405.43,0.00047945,120]
[354674869,1740612634740,-511.36,0.00047945,30]
[354674870,1740612634749,-7025.95,0.00047945,120]
[354674871,1740612634760,-1769.31,0.00047945,120]
[354674872,1740612634771,-11606.25,0.00047945,3]
[354674873,1740612634786,-6098.04,0.00047945,120]
[354674874,1740612634802,-5165.94,0.00047945,120]
[354674875,1740612634817,-1296.39,0.00047945,120]
[354674876,1740612634830,-1000.0,0.00047945,2]
[354674877,1740612634845,-500.0,0.00047945,120]
[354674878,1740612634859,-1434.05,0.00047945,120]
[354674879,1740612634875,-602.5,0.00047945,120]
[354674880,1740612634888,-500.0,0.00047945,120]
[354674881,1740612634903,-500.0,0.00047945,120]
[354674882,1740612634918,-11788.68,0.00047945,120]
[354674883,1740612634931,-3610.93,0.00047945,120]
[354674884,1740612634945,-1267.92,0.00047945,120]
[354674885,1740612634957,-500.0,0.00047945,120]
[354674886,1740612634971,-2222.15,0.00047945,120]
[354674887,1740612634985,-600.75,0.00047945,120]
[354674888,1740612634997,-500.0,0.00047945,120]
[354674889,1740612635008,-500.0,0.00047945,21]
[354674890,1740612635020,-963.51,0.00047945,120]
[354674891,1740612635034,-1872.17,0.00047945,120]
[354674892,1740612635048,-7675.21,0.00047945,120]
[354674893,1740612635062,-3447.65,0.00047945,120]
[354674894,1740612635077,-500.0,0.00047945,120]
[354674895,1740612635093,-500.0,0.00047945,120]
[354674896,1740612635106,-1518.89,0.00047945,120]
[354674897,1740612635116,-828.63,0.00047945,120]
[354674898,1740612635129,-874.37,0.00047945,120]
[354674899,1740612635143,-16446.27,0.00047945,120]
[354674900,1740612635157,-987.91,0.00047945,120]
[354674901,1740612635170,-544.41,0.00047945,120]
[354674902,1740612635181,-500.0,0.00047945,120]
[354674903,1740612635193,-238.81848925,0.0004804,28]
[354674904,1740612635208,-431.08838033,0.00048134,2]
[354674905,1740612635219,-1851.75,0.00048218,120]
[354674906,1740612635230,-7716.64,0.00048219,120]
[354674907,1740612635242,-11356.27,0.00048219,120]
[354674908,1740612635253,-8145.14,0.00048219,120]
[354674909,1740612635265,-2928.74,0.00048219,120]
[354674910,1740612635276,-982.75,0.00048219,120]
[354674911,1740612635288,-513.83,0.00048219,120]